bitfinex/quotes_ETHUSD_20250731
["timestamp","ask_amount","ask_price","bid_price","bid_amount"]
[1753985822815,0.002,3759.6,3758.0,6.21098988]
[1753985823015,0.002,3759.6,3758.0,17.06698988]
[1753985823208,0.002,3759.6,3758.0,13.56408988]
[1753985823454,0.002,3759.6,3758.0,18.02508988]
[1753985823637,2.66188471,3759.6,3758.0,19.11389826]
[1753985823953,0.002,3759.6,3758.0,19.11389826]
[1753985824319,2.66214555,3759.2,3758.0,19.11389826]
[1753985824632,2.66214555,3759.2,3758.0,19.31127928]
[1753985824808,0.002,3759.2,3758.0,33.55687928]
[1753985825008,0.002,3759.2,3758.0,25.28204428]
[1753985825351,0.002,3759.2,3758.0,19.31027928]
[1753985826269,0.002,3759.2,3758.0,11.00550838]
[1753985826553,3.09611174,3759.1,3758.0,17.03668988]
[1753985826708,0.4359,3759.1,3758.0,6.394]
[1753985826915,0.4359,3759.1,3758.0,10.852]
[1753985827116,2.66054759,3758.7,3758.0,13.852]
[1753985827336,0.4359,3758.7,3758.0,9.394]
[1753985827655,0.4359,3758.7,3758.0,13.852]
[1753985827861,2.66057373,3758.6,3758.0,13.852]
[1753985828062,2.66056588,3758.6,3758.0,13.852]
[1753985828208,2.66061364,3758.6,3758.0,13.851]
[1753985828408,3.09639687,3758.7,3758.0,13.851]
[1753985828657,0.4359,3758.7,3758.0,13.851]
[1753985828957,2.66058347,3758.6,3758.0,13.851]
[1753985829252,0.002,3759.2,3758.0,19.67230264]
[1753985829452,0.002,3759.2,3759.0,2.66021767]
[1753985829679,0.002,3759.2,3759.1,4.456]
[1753985830581,0.4379,3759.2,3758.2,2.66079133]
[1753985830739,0.002,3759.2,3758.6,2.66053943]
[1753985831090,0.002,3759.2,3758.7,4.455]
[1753985831256,0.002,3759.2,3759.1,2.66021122]
[1753985831437,0.002,3759.2,3759.1,4.454]
[1753985831634,2.66215817,3759.2,3759.1,4.454]
[1753985831976,0.002,3759.2,3759.1,4.454]
[1753985832149,0.1348,3759.2,3759.1,4.454]
[1753985833891,0.7587,3759.2,3758.1,0.6555]
[1753985834187,0.1328,3758.6,3758.2,4.452]
[1753985834392,0.1328,3758.4,3758.2,4.452]
[1753985835072,0.1328,3758.4,3758.3,2.66077747]
[1753985835267,0.002,3759.2,3758.3,2.60977775]
[1753985835459,0.1328,3758.7,3758.4,4.451]
[1753985835655,0.1328,3758.7,3758.5,0.5227]
[1753985835854,0.002,3759.2,3758.6,4.451]
[1753985836085,0.1328,3758.9,3758.7,2.66047625]
[1753985836271,0.1328,3758.9,3758.8,4.451]
[1753985837164,0.7697,3758.9,3758.0,6.5268]
[1753985837490,0.002,3759.2,3758.1,4.45]
[1753985837491,0.6369,3758.8,3758.1,4.45]
[1753985837790,0.03525175,3759.2,3758.2,4.45]
[1753985837791,0.1328,3758.4,3758.2,4.45]
[1753985838558,0.1328,3758.4,3758.3,0.5623]
[1753985838757,0.002,3759.2,3758.4,2.66069242]
[1753985838998,0.002,3759.2,3758.5,4.449]
[1753985838999,0.1328,3758.7,3758.5,4.449]
[1753985839181,0.1328,3758.7,3758.6,2.6605651]
[1753985839505,0.1328,3758.7,3758.6,3.2228651]
[1753985839792,0.1328,3758.9,3758.6,1.0178]
[1753985839966,0.1328,3758.9,3758.6,0.5623]
[1753985840152,0.1328,3758.9,3758.7,0.5623]
[1753985840353,0.1328,3758.9,3758.5,4.449]
[1753985840354,0.1328,3758.9,3758.8,4.448]
[1753985840990,0.1328,3758.9,3758.2,0.1328]
[1753985841180,0.188,3759.1,3758.3,4.447]
[1753985841378,2.66104873,3758.0,3757.3,2.66146826]
[1753985841596,0.1328,3757.5,3756.7,2.66191071]
[1753985841802,0.4489,3757.9,3756.8,4.447]
[1753985842135,0.1328,3757.2,3757.1,2.66162731]
[1753985842320,2.66099087,3758.0,3757.1,2.66162731]
[1753985842321,0.1328,3757.5,3757.1,4.447]
[1753985842606,0.1328,3757.5,3757.2,3.22385647]
[1753985842810,0.1328,3757.5,3757.2,0.5623]
[1753985843013,0.1328,3757.5,3757.2,2.66155597]
[1753985843183,0.1328,3757.5,3757.4,2.6614148]
[1753985843384,0.1328,3757.5,3757.4,4.446]
[1753985843695,0.1328,3757.5,3757.4,7.6697148]
[1753985843896,0.1328,3757.5,3757.4,8.1252148]
[1753985844201,0.1328,3757.5,3757.4,5.0083]
[1753985844408,2.66085358,3758.2,3757.4,5.0083]
[1753985844610,0.1328,3757.7,3757.4,7.66970626]
[1753985844908,2.66037907,3758.9,3757.4,7.66970626]
[1753985844909,0.1328,3758.1,3757.8,2.66107737]
[1753985845075,0.1328,3758.1,3757.9,7.10599076]
[1753985845405,2.79371908,3758.1,3758.0,4.445]
[1753985845579,2.66118993,3757.8,3757.2,3.0]
[1753985845779,2.66118993,3757.8,3757.4,5.66135548]
[1753985845780,0.1328,3757.8,3757.4,5.66135548]
[1753985845980,2.66103723,3758.0,3757.5,4.445]
[1753985846180,2.66111777,3757.9,3757.5,4.445]
[1753985846381,0.1805,3758.7,3756.9,10.05455886]
[1753985846382,2.66139249,3757.5,3756.9,0.6951]
[1753985846588,0.1328,3757.2,3757.1,3.0]
[1753985847480,0.1328,3757.2,3757.1,0.5623]
[1753985847674,0.1328,3757.2,3757.1,3.72455731]
[1753985848004,0.1328,3757.5,3757.1,4.18005731]
[1753985848317,0.24559348,3758.2,3757.2,1.0178]
[1753985848518,0.1328,3758.0,3757.4,0.1328]
[1753985848818,0.21375617,3758.7,3757.3,7.444]
[1753985849004,0.1328,3757.4,3757.1,0.5623]
[1753985849203,0.1328,3757.4,3757.2,4.443]
[1753985849394,0.1328,3757.4,3757.3,3.22378564]
[1753985849597,0.24574568,3758.1,3757.4,2.66140817]
[1753985849821,0.1328,3757.8,3757.5,5.0053]
[1753985850020,0.1328,3757.8,3757.7,2.66120233]
[1753985850219,0.1328,3757.8,3757.7,6.73953553]
[1753985850402,0.24572139,3758.3,3757.8,3.0]
[1753985850714,2.66032838,3759.0,3758.0,3.0]
[1753985850914,0.1328,3758.5,3758.0,3.1328]
[1753985851119,0.24573383,3758.4,3758.1,1.0178]
[1753985851321,0.1328,3758.7,3758.2,5.77402198]
[1753985851494,0.1328,3758.5,3758.2,5.07892198]
[1753985851689,0.24576742,3758.4,3758.3,4.8223]
[1753985851884,0.1328,3758.5,3758.3,4.8223]
[1753985852291,0.002,3759.2,3758.4,0.5623]
[1753985852495,0.1328,3758.8,3758.5,7.10263142]
[1753985852710,0.24573878,3758.7,3758.6,3.6783651]
[1753985852916,0.002,3759.2,3758.8,2.66038982]
[1753985853223,0.2457869,3759.1,3758.9,4.441]
[1753985853425,0.2457869,3759.0,3758.9,4.441]
[1753985853919,0.2457869,3759.0,3758.9,8.05978276]
[1753985854121,0.002,3759.2,3759.1,2.66021122]
[1753985854322,0.24804545,3759.2,3759.1,2.66021122]
[1753985854504,0.24804545,3759.2,3759.1,3.81081122]
[1753985855324,0.002,3759.2,3759.1,7.36081122]
[1753985855523,0.002,3759.2,3759.1,8.85732062]
[1753985855691,0.002,3759.2,3759.1,13.29632062]
[1753985856089,0.002,3759.2,3759.1,8.30732062]
[1753985856293,0.24801429,3759.2,3759.1,12.74632062]
[1753985856526,0.24801047,3759.2,3759.1,12.29082062]
[1753985856743,0.24801047,3759.2,3759.1,12.74632062]
[1753985857927,0.24801047,3759.2,3759.1,13.29632062]
[1753985858135,0.24795321,3759.2,3759.1,13.29632062]
[1753985858435,0.24795321,3759.2,3759.1,5.6471094]
[1753985858643,0.24795321,3759.2,3759.1,7.437]
[1753985859453,0.24795321,3759.2,3759.1,10.65951122]
[1753985859597,0.24795321,3759.2,3759.1,7.9993]
[1753985860434,0.24795321,3759.2,3759.1,11.695]
[1753985860735,0.24795321,3759.2,3759.1,7.26]
[1753985860938,0.24795321,3759.2,3759.1,11.695]
[1753985861098,0.24784673,3759.2,3759.1,11.695]
[1753985861913,0.24784673,3759.2,3759.1,14.35421122]
[1753985862102,0.24784673,3759.2,3759.1,17.08674574]
[1753985862321,0.24784673,3759.2,3759.1,12.82674574]
[1753985862564,0.002,3759.2,3759.1,13.37674574]
[1753985862757,0.002,3759.2,3759.1,13.50954574]
[1753985863941,0.002,3759.2,3759.1,7.50774574]
[1753985864124,0.002,3759.2,3759.1,11.94074574]
[1753985864322,0.002,3759.2,3759.1,5.86533452]
[1753985864523,0.002,3759.2,3759.1,8.1271]
[1753985864845,0.002,3759.2,3759.1,10.78731122]
[1753985865424,0.002,3759.2,3759.1,11.79281122]
[1753985867119,0.002,3759.2,3759.1,27.72035722]
[1753985867267,0.002,3759.2,3759.1,25.91093522]
[1753985867422,0.002,3759.2,3759.1,16.05281122]
[1753985867628,0.002,3759.2,3759.1,11.62081122]
[1753985868069,0.002,3759.2,3759.1,15.59531122]
[1753985868375,0.002,3759.2,3759.1,16.05421122]
[1753985869077,0.002,3759.2,3759.1,16.05321122]
[1753985869363,0.002,3759.2,3759.1,17.92456607]
[1753985871248,0.002,3759.3,3759.2,6.21014045]
[1753985871450,0.002,3759.3,3759.2,7.19904045]
[1753985871776,0.002,3759.6,3759.5,6.20992818]
[1753985872084,0.002,3759.6,3759.5,10.76972818]
[1753985872292,0.002,3759.6,3759.5,11.2493224]
[1753985872442,0.002,3759.6,3759.5,12.2382224]
[1753985873291,1e-08,3759.6,3759.5,12.2382224]
[1753985873652,1e-08,3759.6,3759.5,7.8112224]
[1753985873853,1e-08,3759.6,3759.5,16.4972224]
[1753985874100,1e-08,3759.6,3759.5,12.2372224]
[1753985874787,1e-08,3759.6,3759.5,42.2195534]
[1753985874994,0.002,3760.0,3759.9,21.7668562]
[1753985874995,1e-08,3760.0,3759.9,21.7668562]
[1753985875153,1e-08,3760.0,3759.9,33.43817617]
[1753985875357,1e-08,3760.0,3759.9,20.42666517]
[1753985875556,1e-08,3760.0,3759.9,31.37709817]
[1753985875754,1e-08,3760.0,3759.9,25.99789517]
[1753985875997,1e-08,3760.0,3759.9,36.93115017]
[1753985876390,1e-08,3760.0,3759.9,23.77726517]
[1753985876706,1e-08,3760.0,3759.9,27.90446517]
[1753985876915,1e-08,3760.0,3759.9,23.61326517]
[1753985877203,1e-08,3760.0,3759.9,28.03626517]
[1753985880297,1e-08,3760.0,3759.9,4.66380005]
[1753985880506,0.59100001,3760.0,3759.9,0.1328]
[1753985880804,0.59100001,3760.0,3759.3,6.386]
[1753985881004,0.59100001,3760.0,3759.8,2.65969845]
[1753985881180,0.16230001,3760.0,3759.3,6.386]
[1753985881385,0.4287,3759.9,3759.7,2.65974103]
[1753985881581,0.591,3759.8,3758.5,0.19664985]
[1753985881797,0.591,3759.7,3759.0,2.66021895]
[1753985882175,1e-08,3760.0,3759.2,3.0]
[1753985882276,1e-08,3760.0,3759.9,2.6596452]
[1753985882465,1e-08,3760.0,3759.9,10.0786452]
[1753985882709,1e-08,3760.0,3759.9,6.2096452]
[1753985882873,1e-08,3760.0,3759.9,7.1985452]
[1753985883075,1e-08,3760.0,3759.9,13.2409766]
[1753985883918,1e-08,3760.0,3759.9,23.9594476]
[1753985884269,1e-08,3760.0,3759.9,13.2409766]
[1753985884470,1e-08,3760.0,3759.9,12.7820766]
[1753985884899,1e-08,3760.0,3759.9,7.2840766]
[1753985885172,1e-08,3760.0,3759.9,11.7020766]
[1753985885598,1e-08,3760.0,3759.9,12.2520766]
[1753985886106,1e-08,3760.0,3759.9,12.7820766]
[1753985886511,1e-08,3760.0,3759.9,4.2840766]
[1753985886709,0.42870001,3760.0,3759.9,7.0766452]
[1753985886910,0.42870001,3760.0,3759.9,10.0766452]
[1753985887309,1e-08,3760.0,3759.9,10.0766452]
[1753985887816,1e-08,3760.0,3758.6,14.755354]
[1753985887817,0.42870001,3760.0,3758.6,14.755354]
[1753985887970,0.59100001,3760.0,3759.2,2.66008984]
[1753985888177,0.1623,3759.9,3759.3,4.416]
[1753985888380,0.4287,3759.8,3759.4,4.416]
[1753985888591,0.1623,3759.7,3759.4,4.416]
[1753985888807,0.591,3759.6,3759.1,2.66019407]
[1753985889013,2.65977725,3759.8,3759.2,4.416]
[1753985889170,0.591,3759.5,3759.2,4.416]
[1753985889375,0.4287,3759.9,3759.2,4.416]
[1753985889690,0.4287,3759.9,3759.3,2.66006969]
[1753985889840,0.4287,3759.9,3759.4,4.415]
[1753985890019,0.4287,3759.8,3759.4,4.415]
[1753985890218,0.591,3759.7,3759.4,4.415]
[1753985890401,0.4287,3759.6,3759.4,4.415]
[1753985890909,0.42870001,3760.0,3759.4,4.415]
[1753985891126,0.1328,3759.9,3759.4,4.415]
[1753985891433,0.5615,3759.9,3759.6,2.65984018]
[1753985891631,0.5615,3759.9,3759.2,0.1328]
[1753985891632,0.4287,3759.9,3759.7,4.414]
[1753985891834,0.4287,3759.9,3759.5,2.65991623]
[1753985891835,0.4287,3759.9,3759.8,4.414]
[1753985892007,0.4287,3759.9,3759.1,2.66015013]
[1753985892008,2.65971775,3759.8,3759.1,2.66015013]
[1753985892212,0.50063614,3759.9,3759.2,4.414]
[1753985892213,0.19554733,3759.7,3759.2,4.414]
[1753985892399,0.46194821,3759.6,3759.3,4.414]
[1753985892605,2.65999893,3759.4,3759.3,4.414]
[1753985892799,2.79279893,3759.4,3759.3,4.094]
[1753985893031,3.82906989,3759.4,3759.3,4.094]
[1753985893825,3.33806989,3759.4,3759.3,4.094]
[1753985894027,0.1328,3759.4,3759.3,4.094]
[1753985894352,0.6238,3759.4,3759.3,4.094]
[1753985894552,0.1328,3759.4,3759.3,4.094]
[1753985896255,0.6238,3759.4,3758.8,4.412]
[1753985896439,2.66049431,3758.7,3758.6,4.412]
[1753985896638,3.15149431,3758.7,3758.6,4.412]
[1753985896854,3.28429431,3758.7,3758.6,4.412]
[1753985897232,3.28429431,3758.7,3757.7,0.001]
[1753985897233,2.66084827,3758.2,3757.7,0.001]
[1753985897561,2.66084827,3758.2,3758.1,4.412]
[1753985897562,0.1328,3758.2,3758.1,4.412]
[1753985898379,0.1328,3758.2,3758.1,10.07291908]
[1753985898718,2.98899991,3759.0,3758.2,3.0]
[1753985898921,0.1328,3758.4,3758.1,4.412]
[1753985899122,0.1328,3758.4,3758.2,3.0]
[1753985899546,2.79351867,3758.4,3758.1,0.001]
[1753985899723,0.27935187,3758.3,3758.2,4.411]
[1753985900038,0.1328,3758.2,3758.1,0.001]
[1753985900239,0.1328,3758.2,3758.1,4.412]
[1753985900846,0.1328,3758.2,3758.1,7.07291908]
[1753985901230,0.1328,3758.2,3758.1,2.66191908]
[1753985901440,2.98900621,3759.0,3758.1,2.66191908]
[1753985901441,0.1328,3758.5,3758.2,2.66084827]
[1753985902074,0.1328,3758.5,3758.3,2.66076511]
[1753985902273,0.1328,3758.5,3758.4,4.41]
[1753985902572,0.1623,3758.8,3758.4,4.41]
[1753985902753,0.1328,3758.5,3758.4,4.41]
[1753985903058,3.28443589,3758.5,3758.4,4.41]
[1753985903259,2.66084827,3758.2,3758.1,0.001]
[1753985903419,0.1328,3758.2,3758.1,4.411]
[1753985904438,0.1328,3758.2,3758.1,8.02521908]
[1753985904761,2.6605453,3758.7,3758.1,4.411]
[1753985904965,0.1328,3758.2,3758.1,7.07191908]
[1753985905464,0.1328,3758.2,3758.1,4.41]
[1753985906325,0.1328,3758.2,3758.1,0.001]
[1753985906573,3.29940887,3758.2,3758.1,0.001]
[1753985906863,3.89542622,3758.2,3758.1,0.001]
[1753985907088,3.86216562,3758.2,3758.1,0.001]
[1753985907855,0.72881735,3758.2,3758.1,0.001]
[1753985908019,0.1328,3758.2,3758.1,0.001]
[1753985908546,0.1328,3758.2,3758.1,4.408]
[1753985910662,0.1328,3758.2,3758.1,4.9219]
[1753985910870,0.1328,3758.2,3758.1,0.001]
[1753985911179,2.82690887,3758.2,3758.1,4.407]
[1753985911331,3.37528566,3758.2,3758.1,4.407]
[1753985911532,0.71443739,3758.2,3758.1,4.407]
[1753985911726,0.1328,3758.2,3758.1,4.407]
[1753985912253,0.1328,3758.2,3758.1,7.06791908]
[1753985912440,2.66036454,3758.9,3758.1,5.3603]
[1753985912645,0.1328,3758.4,3758.2,2.66080181]
[1753985912846,0.002,3759.4,3758.3,0.9533]
[1753985913158,0.1328,3758.8,3758.6,2.66052162]
[1753985913356,0.1328,3758.8,3758.7,8.01879431]
[1753985913931,0.1328,3758.8,3758.7,5.3583]
[1753985914931,0.1328,3758.8,3758.7,4.9189]
[1753985915358,0.1328,3758.8,3758.2,0.6467]
[1753985915532,2.66027781,3759.1,3758.3,5.3583]
[1753985915732,0.1328,3758.5,3758.3,5.3583]
[1753985915949,0.1328,3758.5,3758.4,3.61400668]
[1753985916145,0.002,3759.4,3758.4,0.9533]
[1753985916356,2.66019268,3759.2,3758.5,2.66061828]
[1753985916564,0.002,3759.4,3758.6,2.66054628]
[1753985916759,2.9263113,3759.3,3758.7,4.403]
[1753985916966,0.26619331,3759.3,3758.7,4.403]
[1753985917146,0.002,3759.4,3758.7,4.403]
[1753985917147,0.002,3759.4,3759.1,2.66019554]
[1753985917328,0.1328,3759.2,3759.1,2.66019554]
[1753985917528,0.1328,3759.2,3759.1,8.01549554]
[1753985917959,0.1328,3759.2,3759.1,4.9159]
[1753985918149,0.1328,3759.2,3759.1,4.402]
[1753985918751,0.41248722,3759.2,3759.1,4.402]
[1753985918952,2.79296062,3759.2,3759.1,4.402]
[1753985919340,0.6053,3759.2,3758.1,0.5149]
[1753985919643,2.66039858,3758.9,3758.3,5.66077232]
[1753985919844,0.002,3759.3,3758.2,4.401]
[1753985920043,0.1328,3758.3,3758.2,10.06184827]
[1753985920267,0.1328,3758.3,3758.2,7.9149]
[1753985920431,2.66084827,3758.2,3758.1,0.001]
[1753985920636,3.2062896,3758.2,3758.1,4.402]
[1753985921264,3.2062896,3758.2,3758.1,0.001]
[1753985921467,2.66113151,3757.8,3756.7,0.6467]
[1753985921776,2.66113151,3757.8,3756.1,6.389]
[1753985921777,2.79393151,3757.8,3757.2,4.4]
[1753985922244,2.79393151,3757.8,3756.7,0.5139]
[1753985922245,2.79393151,3757.8,3757.6,4.401]
[1753985922445,2.79393151,3757.8,3757.6,0.001]
[1753985923495,0.1328,3757.8,3757.6,0.001]
[1753985923667,2.79393151,3757.8,3757.6,0.001]
[1753985923858,3.33942456,3757.8,3757.6,0.001]
[1753985924175,0.67829305,3757.8,3757.6,0.001]
[1753985924382,0.1328,3757.8,3757.6,0.001]
[1753985924747,2.79393151,3757.8,3757.6,0.001]
[1753985926064,2.66113151,3757.8,3757.6,0.001]
[1753985926273,2.79393151,3757.8,3757.6,0.001]
[1753985926489,0.55,3757.7,3754.2,0.6467]
[1753985926783,5.66173115,3757.0,3755.2,2.66290702]
[1753985927081,2.66183986,3756.8,3755.3,0.9645]
[1753985927287,2.66229263,3756.2,3755.4,0.49]
[1753985927488,2.66229263,3756.2,3755.5,0.4745]
[1753985927489,2.66231259,3756.2,3755.5,0.4745]
[1753985927675,2.66239116,3756.1,3755.5,0.4745]
[1753985927985,2.66224798,3756.3,3755.6,4.887]
[1753985928192,2.662349,3756.1,3755.6,4.887]
[1753985928370,2.662349,3756.1,3755.7,0.49]
[1753985928690,2.662349,3756.1,3755.8,4.887]
[1753985928992,2.66218407,3756.4,3755.9,0.49]
[1753985929157,2.66232044,3756.2,3755.9,0.49]
[1753985929355,2.66176901,3756.9,3756.0,0.49]
[1753985929356,0.34715,3756.9,3756.0,0.49]
[1753985929673,2.66183986,3756.8,3756.0,0.49]
[1753985929979,2.66196624,3756.7,3756.0,0.49]
[1753985930180,2.66209128,3756.5,3756.0,0.49]
[1753985930374,0.34715,3756.9,3756.0,0.49]
[1753985930578,2.66166127,3757.1,3756.1,0.9645]
[1753985930791,2.66166127,3757.1,3756.2,2.66225456]
[1753985931095,3.27939315,3757.7,3756.6,2.66197108]
[1753985931323,2.66160822,3757.2,3756.7,0.49]
[1753985931458,0.27939315,3757.7,3756.5,2.66203522]
[1753985931665,0.24507225,3757.6,3756.8,0.9645]
[1753985931895,2.66168192,3757.1,3756.9,4.397]
[1753985932069,2.66162731,3757.1,3757.0,4.397]
[1753985932273,2.66171862,3757.0,3756.3,2.66214565]
[1753985932494,2.66132918,3757.6,3756.4,4.397]
[1753985932495,0.2449857,3756.9,3756.4,4.397]
[1753985932713,2.66195486,3756.7,3756.4,4.397]
[1753985932908,2.66176247,3757.0,3756.5,0.49]
[1753985933203,0.24494136,3756.9,3756.6,0.9645]
[1753985933502,5.66110091,3757.9,3756.7,0.49]
[1753985933671,1.10616416,3757.8,3756.7,0.49]
[1753985933870,0.48957783,3757.7,3756.7,0.49]
[1753985934071,0.61658633,3757.8,3756.9,2.66176901]
[1753985934072,0.24478352,3757.6,3756.9,2.66176901]
[1753985934274,0.24478352,3757.5,3757.0,5.3605]
[1753985934470,0.24478352,3757.4,3757.1,4.886]
[1753985934673,0.24478352,3757.3,3757.1,4.886]
[1753985934921,0.24478352,3757.2,3757.1,10.85985347]
[1753985935142,2.66115112,3757.8,3757.1,10.85980846]
[1753985935347,0.48955482,3757.7,3757.2,2.66154554]
[1753985935511,0.24477296,3757.6,3757.3,0.49]
[1753985935847,0.24477296,3757.5,3757.4,3.6259148]
[1753985936142,2.66099256,3758.0,3757.4,0.9645]
[1753985936440,0.2448307,3757.9,3757.5,4.396]
[1753985936646,0.1328,3757.6,3757.5,7.05734397]
[1753985937005,0.1328,3757.6,3757.5,4.396]
[1753985937205,0.1328,3757.6,3757.5,4.886]
[1753985937439,0.1328,3757.6,3757.5,5.3605]
[1753985937820,2.66076426,3758.4,3757.6,2.66127315]
[1753985938015,0.1328,3757.8,3757.7,4.885]
[1753985938221,0.1328,3757.8,3757.7,5.3595]
[1753985938628,0.24492133,3758.5,3757.8,3.0]
[1753985938824,0.1328,3758.6,3758.4,2.66069646]
[1753985939055,2.66207224,3759.3,3757.9,0.9645]
[1753985939056,0.1328,3758.8,3758.5,5.3585]
[1753985939217,0.1328,3758.8,3758.6,5.3585]
[1753985939423,0.62255583,3758.8,3758.6,4.8685]
[1753985939746,2.79322353,3758.8,3758.7,0.49]
[1753985939950,0.37768782,3758.8,3758.7,0.49]
[1753985940158,2.66049431,3758.7,3758.3,0.49]
[1753985940313,2.66061149,3758.6,3758.4,4.394]
[1753985940664,2.66063589,3758.5,3758.4,4.394]
[1753985941153,2.79343589,3758.5,3758.4,4.394]
[1753985941454,2.79343589,3758.5,3758.4,4.393]
[1753985941952,0.1328,3758.5,3758.4,4.393]
[1753985942265,0.1328,3758.5,3758.4,5.3575]
[1753985942492,0.1328,3758.5,3758.4,8.01820668]
[1753985942702,0.002,3759.4,3758.5,3.0]
[1753985942846,0.1348,3759.3,3758.5,6.62509659]
[1753985943048,0.1348,3759.3,3759.0,2.66022584]
[1753985943283,0.1348,3759.3,3759.1,4.392]
[1753985943466,0.1348,3759.3,3759.2,0.9645]
[1753985944051,0.1348,3759.3,3759.2,0.49]
[1753985944581,0.1348,3759.3,3759.2,0.9645]
[1753985945770,0.1348,3759.3,3759.2,0.49]
[1753985946173,0.1348,3759.3,3759.2,0.9645]
[1753985946360,0.1348,3759.3,3759.2,0.49]
[1753985946561,0.1348,3759.3,3758.9,6.92034119]
[1753985946562,0.1348,3759.3,3758.9,4.26]
[1753985946773,0.41448262,3759.3,3758.7,0.1328]
[1753985946971,2.66042353,3758.8,3758.3,0.49]
[1753985947164,2.66046125,3758.8,3758.4,4.39]
[1753985947358,0.28168262,3759.3,3758.4,4.39]
[1753985947359,0.1328,3758.5,3758.4,4.39]
[1753985947568,0.1328,3758.5,3758.4,4.88]
[1753985947764,0.1328,3758.5,3758.1,0.9645]
[1753985947966,0.1328,3758.3,3758.2,4.389]
[1753985948371,0.1328,3758.3,3758.2,8.01434827]
[1753985948588,0.002,3759.3,3758.7,2.66049031]
[1753985948791,0.1328,3758.8,3758.7,5.66049031]
[1753985948953,0.002,3759.3,3758.7,5.66049031]
[1753985948954,0.002,3759.3,3758.8,5.66037525]
[1753985949158,0.1328,3759.0,3758.8,5.66037525]
[1753985949370,0.1328,3759.0,3758.9,0.9645]
[1753985950101,0.1328,3759.2,3758.9,0.9645]
[1753985950269,0.1328,3759.2,3759.0,4.388]
[1753985950598,0.002,3759.3,3759.0,4.878]
[1753985950786,0.1328,3759.1,3759.0,7.52278198]
[1753985951096,0.1328,3759.1,3759.0,4.388]
[1753985951469,2.66028198,3759.0,3758.5,4.26]
[1753985951672,0.1328,3758.9,3758.5,4.26]
[1753985951998,2.66033492,3759.0,3758.6,4.388]
[1753985952220,2.66036306,3758.9,3758.6,4.388]
[1753985952416,0.002,3759.3,3758.6,4.388]
[1753985952714,2.66021122,3759.1,3758.6,4.388]
[1753985952917,2.95931464,3759.2,3758.6,4.388]
[1753985953119,0.1328,3758.7,3758.6,4.388]
[1753985953318,0.1328,3758.7,3758.6,4.878]
[1753985953673,2.6605651,3758.6,3758.5,4.26]
[1753985953892,3.20594275,3758.6,3758.5,4.387]
[1753985954703,0.54537765,3758.6,3758.5,4.387]
[1753985954898,0.1328,3758.7,3758.5,4.387]
[1753985955276,0.1328,3758.7,3758.6,0.49]
[1753985955480,0.3277,3758.6,3757.8,0.001]
[1753985955668,2.66095685,3758.1,3757.9,4.386]
[1753985955979,2.66090003,3758.2,3757.9,4.386]
[1753985956166,2.66073277,3758.4,3757.9,4.386]
[1753985956386,0.29884328,3758.3,3757.9,4.386]
[1753985956590,2.66089368,3758.2,3757.9,4.386]
[1753985956791,2.66087145,3758.2,3757.9,4.386]
[1753985957190,2.95963697,3758.3,3757.9,4.386]
[1753985957418,0.29884328,3758.3,3757.9,4.386]
[1753985957784,0.3277,3758.6,3758.0,4.385]
[1753985957980,2.66091436,3758.2,3758.0,4.385]
[1753985958179,2.66058251,3758.6,3758.0,4.385]
[1753985958385,2.66073333,3758.4,3758.0,4.385]
[1753985958718,2.66089344,3758.2,3758.0,4.385]
[1753985959008,2.66091908,3758.1,3758.0,4.385]
[1753985959406,0.26608934,3758.2,3758.0,4.385]
[1753985960607,0.55,3759.0,3758.0,4.9074]
[1753985960608,2.66077966,3758.3,3758.0,4.9074]
[1753985961221,2.66061085,3758.6,3758.0,4.385]
[1753985961427,2.66075216,3758.4,3758.1,0.5224]
[1753985961721,2.66089734,3758.2,3758.0,4.385]
[1753985961896,2.66078874,3758.3,3758.0,4.385]
[1753985962102,2.66084928,3758.2,3758.0,4.385]
[1753985962422,3.0,3759.1,3758.0,4.385]
[1753985962423,5.66024015,3759.1,3758.0,4.385]
[1753985962642,2.66078066,3758.3,3758.0,4.9074]
[1753985962925,0.002,3758.5,3758.0,4.9074]
[1753985962926,2.66072639,3758.4,3758.0,4.9074]
[1753985963131,2.66078049,3758.3,3758.0,4.9074]
[1753985963513,0.002,3758.5,3758.0,4.9074]
[1753985963712,0.002,3758.5,3758.1,0.5224]
[1753985963918,0.002,3758.5,3758.1,0.9815]
[1753985964118,0.002,3758.5,3758.0,4.385]
[1753985964119,0.002,3758.5,3758.2,0.9815]
[1753985964320,0.002,3758.5,3758.3,4.383]
[1753985964989,0.002,3758.5,3757.8,0.001]
[1753985964990,0.03525794,3758.5,3757.8,0.001]
[1753985965307,0.002,3758.5,3758.0,2.66094431]
[1753985965502,0.002,3758.5,3758.1,0.9815]
[1753985965707,0.002,3758.5,3758.4,2.66070668]
[1753985966094,0.1348,3758.5,3758.4,3.64220668]
[1753985966692,0.002,3758.5,3758.4,3.64220668]
[1753985967035,0.002,3758.5,3758.4,9.23688727]
[1753985967194,0.002,3758.5,3758.4,9.36968727]
[1753985967735,0.002,3758.5,3758.4,12.91968727]
[1753985968299,0.1348,3759.3,3759.2,2.66014045]
[1753985968497,0.002,3759.7,3759.6,2.65985743]
[1753985968712,0.8202862,3761.9,3760.3,2.65936228]
[1753985968915,0.1072,3762.7,3760.5,2.65922084]
[1753985969113,2.65789223,3762.4,3761.1,3.0]
[1753985969314,0.19731831,3763.4,3761.3,3.0]
[1753985969315,0.3297,3763.1,3761.3,3.0]
[1753985969552,0.24485338,3763.0,3762.2,2.65797313]